fUSD/lending_fUSD_20260529
["ID","MTS","AMOUNT","RATE_DAILY","PERIOD"]
[423271115,1780009854000,-300.78718,0.00029153,7]
[423271116,1780009854000,-1295.476588,0.00029153,7]
[423271122,1780009854000,-1149.77,0.00029194,30]
[423271113,1780009854000,-300.787183,0.00029153,7]
[423271114,1780009854000,-300.787183,0.00029153,7]
[423271111,1780009854000,-455.8020216,0.00029149,120]
[423271108,1780009854000,-1448.93,0.00029138,7]
[423271121,1780009854000,-1149.77,0.00029173,30]
[423271198,1780009855000,-1000.0,0.00029596,2]
[423271192,1780009855000,-2358.34114649,0.000295,2]
[423271190,1780009855000,-898.994001,0.000295,7]
[423271201,1780009855000,-1000.0,0.00029596,2]
[423271199,1780009855000,-1000.0,0.00029596,2]
[423271181,1780009855000,-1363.48305572,0.000295,2]
[423271200,1780009855000,-1000.0,0.00029596,2]
[423271189,1780009855000,-517.749435,0.000295,7]
[423271184,1780009855000,-517.749427,0.000295,7]
[423271183,1780009855000,-898.994,0.000295,7]
[423271195,1780009855000,-617.6,0.00029545,120]
[423271188,1780009855000,-898.994,0.000295,7]
[423271196,1780009855000,-188.34675647,0.0002955,2]
[423271206,1780009855000,-207.29358196,0.000296,2]
[423271193,1780009855000,-2358.34114649,0.000295,2]
[423271194,1780009855000,-644.79446245,0.00029516,2]
[423271197,1780009855000,-620.0,0.00029584,120]
[423271202,1780009855000,-1000.0,0.00029596,2]
[423271205,1780009855000,-207.29358198,0.000296,2]
[423271212,1780009855000,-519.63,0.00029699,120]
[423271207,1780009855000,-207.29358196,0.000296,2]
[423271203,1780009855000,-744.8118064,0.00029599,2]
[423271213,1780009855000,-519.63,0.00029699,120]
[423271209,1780009855000,-500.0,0.0002966,120]
[423271208,1780009855000,-164.0,0.00029617,120]
[423271204,1780009855000,-1872.43196972,0.000296,2]
[423271180,1780009855000,-1363.48305573,0.000295,2]
[423271191,1780009855000,-2358.34114652,0.000295,2]
[423271182,1780009855000,-1363.48305572,0.000295,2]
[423271167,1780009855000,-200.0,0.0002942,2]
[423271185,1780009855000,-517.749427,0.000295,7]
[423271210,1780009855000,-397.25089247,0.00029695,7]
[423271161,1780009855000,-150.0,0.00029397,120]
[423271155,1780009855000,-169.952748,0.00029378,7]
[423271157,1780009855000,-4101.394339,0.00029378,7]
[423271154,1780009855000,-4101.394339,0.00029378,7]
[423271160,1780009855000,-169.952752,0.00029378,7]
[423271156,1780009855000,-4101.394339,0.00029378,7]
[423271159,1780009855000,-4101.394345,0.00029378,7]
[423271158,1780009855000,-169.952748,0.00029378,7]
[423271162,1780009855000,-274.22519275,0.00029397,120]
[423271163,1780009855000,-1149.77,0.00029398,30]
[423271165,1780009855000,-4672.36,0.000294,7]
[423271164,1780009855000,-3640.04,0.000294,7]
[423271173,1780009855000,-164.063804,0.000295,7]
[423271174,1780009855000,-666.725847,0.000295,7]
[423271166,1780009855000,-1149.77,0.00029418,30]
[423271172,1780009855000,-151.0,0.000295,7]
[423271169,1780009855000,-1149.77,0.00029439,30]
[423271168,1780009855000,-222.01,0.00029438,120]
[423271170,1780009855000,-1149.77,0.00029459,30]
[423271171,1780009855000,-1149.77,0.0002948,30]
[423271176,1780009855000,-666.725847,0.000295,7]
[423271175,1780009855000,-666.725847,0.000295,7]
[423271177,1780009855000,-151.0,0.000295,7]
[423271187,1780009855000,-517.749427,0.000295,7]
[423271186,1780009855000,-898.994,0.000295,7]
[423271178,1780009855000,-666.725851,0.000295,7]
[423271179,1780009855000,-151.0,0.000295,7]
[423271211,1780009855000,-519.63,0.00029699,120]
[423271229,1780009855000,-158.55,0.00029755,7]
[423271218,1780009855000,-560.67,0.00029699,30]
[423271246,1780009855000,-3186.0,0.00029767,30]
[423271248,1780009855000,-213.0,0.00029793,120]
[423271251,1780009855000,-1281.0,0.00029798,30]
[423271261,1780009855000,-521.42581164,0.00029819,7]
[423271250,1780009855000,-2359.0,0.00029798,30]
[423271252,1780009855000,-1136.0,0.00029798,30]
[423271254,1780009855000,-2566.0,0.00029798,30]
[423271257,1780009855000,-4672.36,0.000298,7]
[423271258,1780009855000,-376.97314656,0.00029816,7]
[423271256,1780009855000,-3640.04,0.000298,7]
[423271259,1780009855000,-354.36786487,0.00029819,7]
[423271214,1780009855000,-519.63,0.00029699,120]
[423271260,1780009855000,-630.58547026,0.00029819,7]
[423271255,1780009855000,-560.0,0.00029798,30]
[423271262,1780009855000,-685.99823998,0.00029819,7]
[423271264,1780009855000,-152.0,0.00029822,13]
[423271267,1780009855000,-174.35456521,0.00029823,7]
[423271270,1780009855000,-354.1882706,0.00029823,7]
[423271268,1780009855000,-151.01290472,0.00029823,7]
[423271266,1780009855000,-168.61951384,0.00029823,7]
[423271265,1780009855000,-354.44739148,0.00029823,7]
[423271263,1780009855000,-303.73712801,0.00029819,2]
[423271269,1780009855000,-211.14806677,0.00029823,7]
[423271271,1780009855000,-381.21083141,0.00029823,7]
[423271272,1780009855000,-317.83931399,0.00029823,7]
[423271274,1780009855000,-320.98075376,0.00029823,7]
[423271273,1780009855000,-223.53838262,0.00029823,5]
[423271247,1780009855000,-1072.0,0.00029767,30]
[423271245,1780009855000,-2518.0,0.00029767,30]
[423271253,1780009855000,-4829.0,0.00029798,30]
[423271242,1780009855000,-1331.0,0.00029767,30]
[423271217,1780009855000,-560.67,0.00029699,30]
[423271243,1780009855000,-1880.0,0.00029767,30]
[423271216,1780009855000,-560.67,0.00029699,30]
[423271223,1780009855000,-164.0,0.0002973,120]
[423271225,1780009855000,-155.4164,0.00029747,120]
[423271215,1780009855000,-519.77,0.00029699,120]
[423271224,1780009855000,-415.9091,0.00029747,120]
[423271219,1780009855000,-560.67,0.00029699,30]
[423271220,1780009855000,-560.78574305,0.00029699,30]
[423271222,1780009855000,-2000.0,0.000297,2]
[423271227,1780009855000,-158.55,0.00029755,7]
[423271237,1780009855000,-1748.0,0.00029759,120]
[423271232,1780009855000,-1251.149205,0.00029755,7]
[423271221,1780009855000,-1000.0,0.000297,7]
[423271241,1780009855000,-151.0,0.00029763,7]
[423271244,1780009855000,-999.0,0.00029767,30]
[423271228,1780009855000,-158.55,0.00029755,7]
[423271240,1780009855000,-151.0,0.00029763,7]
[423271249,1780009855000,-1003.0,0.00029798,30]
[423271238,1780009855000,-1476.0,0.00029759,120]
[423271236,1780009855000,-2420.0,0.00029755,120]
[423271239,1780009855000,-151.0,0.00029763,7]
[423271235,1780009855000,-151.0,0.00029755,7]
[423271231,1780009855000,-1251.149205,0.00029755,7]
[423271233,1780009855000,-1251.149205,0.00029755,7]
[423271230,1780009855000,-158.55,0.00029755,7]
[423271226,1780009855000,-3413.0,0.00029751,120]
[423271234,1780009855000,-1251.149209,0.00029755,7]
[423271311,1780009856000,-349.89043509,0.00029828,7]
[423271316,1780009856000,-353.66128442,0.00029828,7]
[423271314,1780009856000,-300.82544739,0.00029828,7]
[423271315,1780009856000,-338.60408453,0.00029828,7]
[423271313,1780009856000,-434.62589012,0.00029828,7]
[423271317,1780009856000,-325.56129912,0.00029828,7]
[423271312,1780009856000,-414.61361682,0.00029828,7]
[423271308,1780009856000,-305.2917494,0.00029828,7]
[423271306,1780009856000,-404.2570019,0.00029828,7]
[423271309,1780009856000,-317.52199663,0.00029828,7]
[423271318,1780009856000,-194.94653685,0.00029828,7]
[423271310,1780009856000,-317.09303384,0.00029828,7]
[423271321,1780009856000,-308.84247573,0.00029828,7]
[423271331,1780009856000,-152.43194224,0.00029828,7]
[423271323,1780009856000,-187.26449885,0.00029828,7]
[423271324,1780009856000,-354.48484676,0.00029828,7]
[423271319,1780009856000,-305.85785557,0.00029828,7]
[423271327,1780009856000,-372.65914787,0.00029828,7]
[423271325,1780009856000,-323.89207727,0.00029828,7]
[423271328,1780009856000,-410.9551341,0.00029828,7]
[423271322,1780009856000,-220.04888634,0.00029828,7]
[423271326,1780009856000,-200.1384933,0.00029828,7]
[423271330,1780009856000,-399.19510012,0.00029828,7]
[423271341,1780009856000,-409.0,0.00029906,120]
[423271342,1780009856000,-369.06165602,0.00029935,14]
[423271340,1780009856000,-681.0,0.00029902,120]
[423271307,1780009856000,-380.43910732,0.00029828,7]
[423271320,1780009856000,-306.73484495,0.00029828,7]
[423271296,1780009856000,-153.24200482,0.00029828,2]
[423271329,1780009856000,-318.02027328,0.00029828,7]
[423271297,1780009856000,-411.37503799,0.00029828,7]
[423271282,1780009856000,-288.449143,0.00029828,7]
[423271275,1780009856000,-362.05929556,0.00029823,7]
[423271276,1780009856000,-307.49122076,0.00029823,7]
[423271277,1780009856000,-174.02657293,0.00029823,7]
[423271278,1780009856000,-400.49403021,0.00029823,7]
[423271280,1780009856000,-631.05978604,0.00029823,7]
[423271279,1780009856000,-242.15035709,0.00029823,7]
[423271281,1780009856000,-356.62235878,0.00029825,7]
[423271284,1780009856000,-288.449143,0.00029828,7]
[423271294,1780009856000,-151.0,0.00029828,7]
[423271286,1780009856000,-493.162796,0.00029828,7]
[423271290,1780009856000,-371.859056,0.00029828,7]
[423271291,1780009856000,-371.859056,0.00029828,7]
[423271300,1780009856000,-186.46909594,0.00029828,7]
[423271283,1780009856000,-288.449143,0.00029828,7]
[423271285,1780009856000,-288.449147,0.00029828,7]
[423271287,1780009856000,-493.162796,0.00029828,7]
[423271293,1780009856000,-371.85905,0.00029828,7]
[423271288,1780009856000,-493.162796,0.00029828,7]
[423271292,1780009856000,-371.859056,0.00029828,7]
[423271295,1780009856000,-151.0,0.00029828,7]
[423271301,1780009856000,-354.02749078,0.00029828,7]
[423271298,1780009856000,-322.47709728,0.00029828,7]
[423271302,1780009856000,-241.01707411,0.00029828,7]
[423271305,1780009856000,-394.0472786,0.00029828,7]
[423271303,1780009856000,-176.31240784,0.00029828,7]
[423271299,1780009856000,-375.28593875,0.00029828,7]
[423271304,1780009856000,-340.62810677,0.00029828,7]
[423271289,1780009856000,-493.162802,0.00029828,7]
[423271332,1780009856000,-330.04736597,0.00029829,7]
[423271344,1780009856000,-241.28891844,0.0002999,2]
[423271333,1780009856000,-304.39043525,0.00029829,7]
[423271372,1780009856000,-188.34675647,0.0003013,2]
[423271377,1780009856000,-205.29816039,0.0003013,2]
[423271381,1780009856000,-151.0,0.00030137,7]
[423271378,1780009856000,-300.0,0.0003013,30]
[423271373,1780009856000,-1092.81524815,0.0003013,2]
[423271371,1780009856000,-483.0,0.00030007,120]
[423271374,1780009856000,-364.57,0.0003013,15]
[423271375,1780009856000,-645.34126049,0.0003013,2]
[423271379,1780009856000,-150.0,0.00030137,120]
[423271380,1780009856000,-958.71,0.00030137,2]
[423271376,1780009856000,-264.15359579,0.0003013,120]
[423271383,1780009856000,-198.828022,0.00030137,7]
[423271393,1780009856000,-927.1,0.00030137,120]
[423271394,1780009856000,-616.82097376,0.00030137,2]
[423271385,1780009856000,-151.0,0.00030137,7]
[423271382,1780009856000,-151.0,0.00030137,7]
[423271384,1780009856000,-151.0,0.00030137,7]
[423271390,1780009856000,-398.01055045,0.00030137,7]
[423271386,1780009856000,-151.0,0.00030137,7]
[423271389,1780009856000,-199.00527522,0.00030137,7]
[423271388,1780009856000,-200.0,0.00030137,2]
[423271387,1780009856000,-156.891437,0.00030137,7]
[423271391,1780009856000,-1003.83,0.00030137,2]
[423271392,1780009856000,-917.31,0.00030137,43]
[423271396,1780009856000,-818.0908563,0.00030147,2]
[423271397,1780009856000,-112980.0659031,0.00030149,2]
[423271334,1780009856000,-166.75,0.0002983,2]
[423271370,1780009856000,-200.0,0.0003,2]
[423271364,1780009856000,-209.03147293,0.0003,30]
[423271395,1780009856000,-500.0,0.00030137,7]
[423271360,1780009856000,-650.0,0.0003,2]
[423271363,1780009856000,-209.03147293,0.0003,7]
[423271337,1780009856000,-846.60909171,0.00029892,7]
[423271335,1780009856000,-1904.0,0.00029839,120]
[423271338,1780009856000,-177.0,0.00029894,120]
[423271339,1780009856000,-343.04,0.000299,5]
[423271343,1780009856000,-344.0,0.00029947,120]
[423271347,1780009856000,-1000.0,0.0003,2]
[423271345,1780009856000,-3000.0,0.0003,3]
[423271346,1780009856000,-368.17119805,0.0003,30]
[423271355,1780009856000,-165.92266475,0.0003,2]
[423271351,1780009856000,-1123.64335598,0.0003,2]
[423271354,1780009856000,-526.57214533,0.0003,30]
[423271348,1780009856000,-368.17119805,0.0003,30]
[423271349,1780009856000,-374.77499452,0.0003,120]
[423271336,1780009856000,-1135.0,0.00029882,120]
[423271353,1780009856000,-1000.0,0.0003,2]
[423271350,1780009856000,-158.46241105,0.0003,30]
[423271361,1780009856000,-1000.0,0.0003,2]
[423271366,1780009856000,-200.0,0.0003,2]
[423271365,1780009856000,-200.0,0.0003,2]
[423271369,1780009856000,-200.0,0.0003,2]
[423271362,1780009856000,-1000.0,0.0003,2]
[423271356,1780009856000,-312.03903775,0.0003,5]
[423271352,1780009856000,-1850.09781255,0.0003,2]
[423271368,1780009856000,-200.0,0.0003,2]
[423271357,1780009856000,-368.17119805,0.0003,30]
[423271359,1780009856000,-429.6296765,0.0003,2]
[423271367,1780009856000,-209.03147293,0.0003,3]
[423271358,1780009856000,-392.0,0.0003,90]
[423271446,1780009857000,-455.60569202,0.00030709,2]
[423271424,1780009857000,-500.0,0.00030617,14]
[423271425,1780009857000,-331.15207779,0.00030631,3]
[423271430,1780009857000,-531.55179731,0.00030709,7]
[423271427,1780009857000,-207.00428148,0.000307,7]
[423271426,1780009857000,-3673.78,0.00030689,7]
[423271428,1780009857000,-2855.62,0.000307,7]
[423271436,1780009857000,-208.36899864,0.00030709,5]
[423271447,1780009857000,-188.34675647,0.00030709,2]
[423271434,1780009857000,-203.44843234,0.00030709,7]
[423271429,1780009857000,-565.45971984,0.00030705,7]
[423271439,1780009857000,-945.87820539,0.00030709,7]
[423271435,1780009857000,-152.20182317,0.00030709,7]
[423271441,1780009857000,-1028.99735997,0.00030709,7]
[423271440,1780009857000,-782.13871745,0.00030709,7]
[423271448,1780009857000,-152.35135759,0.00030712,7]
[423271437,1780009857000,-194.85970635,0.00030709,7]
[423271444,1780009857000,-204.36468012,0.00030709,7]
[423271443,1780009857000,-166.82624182,0.00030709,7]
[423271445,1780009857000,-150.68485378,0.00030709,7]
[423271442,1780009857000,-162.91801101,0.00030709,7]
[423271449,1780009857000,-162.13632365,0.00030712,7]
[423271433,1780009857000,-207.81902716,0.00030709,7]
[423271451,1780009857000,-292.05624045,0.00030712,7]
[423271438,1780009857000,-155.16381924,0.00030709,7]
[423271432,1780009857000,-309.76750669,0.00030709,7]
[423271408,1780009857000,-455.8020216,0.00030275,120]
[423271421,1780009857000,-3640.04,0.000306,7]
[423271450,1780009857000,-243.33465616,0.00030712,7]
[423271398,1780009857000,-3682.4060227,0.00030149,2]
[423271401,1780009857000,-205.68763791,0.000302,120]
[423271402,1780009857000,-3640.04,0.000302,7]
[423271405,1780009857000,-1402.69,0.00030238,7]
[423271399,1780009857000,-60105.6801885,0.00030149,2]
[423271407,1780009857000,-6512.8,0.00030239,2]
[423271406,1780009857000,-969.16,0.00030238,7]
[423271403,1780009857000,-4672.36,0.000302,7]
[423271404,1780009857000,-991.53,0.00030238,7]
[423271400,1780009857000,-207.0,0.00030159,120]
[423271409,1780009857000,-152.0,0.00030336,14]
[423271412,1780009857000,-600.0,0.00030411,120]
[423271411,1780009857000,-200.0,0.000304,3]
[423271410,1780009857000,-150.0,0.00030341,2]
[423271420,1780009857000,-1000.0,0.00030588,14]
[423271419,1780009857000,-3476.91036564,0.00030586,2]
[423271417,1780009857000,-1000.0,0.00030542,14]
[423271418,1780009857000,-204.0,0.00030564,2]
[423271414,1780009857000,-601.95212204,0.00030471,2]
[423271413,1780009857000,-574.0,0.00030438,120]
[423271416,1780009857000,-269.4806,0.00030493,120]
[423271415,1780009857000,-180.0,0.00030491,5]
[423271422,1780009857000,-4672.36,0.000306,7]
[423271431,1780009857000,-219.80968261,0.00030709,7]
[423271423,1780009857000,-2006.0,0.000306,2]
[423271460,1780009857000,-302.02580943,0.00030712,7]
[423271461,1780009857000,-422.29613354,0.00030712,7]
[423271491,1780009857000,-352.62481569,0.00030718,7]
[423271497,1780009857000,-570.65866098,0.00030718,7]
[423271496,1780009857000,-606.38550285,0.00030718,7]
[423271487,1780009857000,-154.23338563,0.00030718,7]
[423271486,1780009857000,-250.60843981,0.00030718,7]
[423271485,1780009857000,-562.92890813,0.00030718,7]
[423271495,1780009857000,-591.07091789,0.00030718,7]
[423271489,1780009857000,-165.42408687,0.00030718,7]
[423271490,1780009857000,-531.04123617,0.00030718,7]
[423271494,1780009857000,-510.94216015,0.00030718,7]
[423271493,1780009857000,-457.93762409,0.00030718,7]
[423271492,1780009857000,-482.03414822,0.00030718,7]
[423271499,1780009857000,-475.63955077,0.00030718,7]
[423271507,1780009857000,-245.61534256,0.00030718,7]
[423271508,1780009857000,-277.10810505,0.00030718,7]
[423271498,1780009857000,-476.28299495,0.00030718,7]
[423271503,1780009857000,-451.23817109,0.00030718,7]
[423271501,1780009857000,-621.92042524,0.00030718,7]
[423271500,1780009857000,-524.83565264,0.00030718,7]
[423271509,1780009857000,-488.34194868,0.00030718,7]
[423271502,1780009857000,-651.93883518,0.00030718,7]
[423271505,1780009857000,-530.49192663,0.00030718,7]
[423271506,1780009857000,-161.91717157,0.00030718,7]
[423271504,1780009857000,-507.9061268,0.00030718,7]
[423271452,1780009857000,-597.01582567,0.00030712,7]
[423271510,1780009857000,-389.8930737,0.00030718,7]
[423271484,1780009857000,-159.32752061,0.00030718,7]
[423271482,1780009857000,-617.06255698,0.00030718,7]
[423271488,1780009857000,-372.93819188,0.00030718,7]
[423271480,1780009857000,-534.93353816,0.00030715,7]
[423271453,1780009857000,-223.86652539,0.00030712,7]
[423271459,1780009857000,-275.47457598,0.00030712,7]
[423271455,1780009857000,-531.67108722,0.00030712,7]
[423271454,1780009857000,-293.73673661,0.00030712,7]
[423271457,1780009857000,-234.86389998,0.00030712,2]
[423271456,1780009857000,-206.75077966,0.00030712,2]
[423271458,1780009857000,-348.70913042,0.00030712,7]
[423271463,1780009857000,-571.81624712,0.00030712,7]
[423271481,1780009857000,-306.48400964,0.00030718,2]
[423271465,1780009857000,-447.07676525,0.00030712,5]
[423271464,1780009857000,-476.75897099,0.00030712,7]
[423271466,1780009857000,-337.23902767,0.00030712,7]
[423271467,1780009857000,-481.47113064,0.00030712,7]
[423271469,1780009857000,-280.9150415,0.00030712,2]
[423271462,1780009857000,-531.2824059,0.00030712,7]
[423271468,1780009857000,-543.08894334,0.00030712,7]
[423271479,1780009857000,-946.58967905,0.00030712,7]
[423271478,1780009857000,-484.30071418,0.00030712,7]
[423271477,1780009857000,-600.74104531,0.00030712,7]
[423271475,1780009857000,-154.43763233,0.00030712,7]
[423271474,1780009857000,-348.05314585,0.00030712,7]
[423271476,1780009857000,-249.39957954,0.00030712,7]
[423271483,1780009857000,-483.71564592,0.00030718,7]
[423271473,1780009857000,-461.23683114,0.00030712,7]
[423271470,1780009857000,-202.99945549,0.00030712,7]
[423271471,1780009857000,-201.29884823,0.00030712,7]
[423271472,1780009857000,-228.88852891,0.00030712,7]
[423271550,1780009858000,-244.5346237,0.00030872,7]
[423271552,1780009858000,-927.1,0.00030959,120]
[423271551,1780009858000,-1000.0,0.00030888,14]
[423271559,1780009858000,-160.0,0.00031,120]
[423271548,1780009858000,-1000.0,0.00030847,14]
[423271560,1780009858000,-3637.0,0.0003102,2]
[423271543,1780009858000,-560.0,0.00030798,30]
[423271549,1780009858000,-152.0,0.0003085,15]
[423271542,1780009858000,-2566.0,0.00030798,30]
[423271545,1780009858000,-250.0,0.000308,30]
[423271544,1780009858000,-779.53,0.00030798,7]
[423271558,1780009858000,-209.03147293,0.00031,120]
[423271561,1780009858000,-6064.0,0.0003102,2]
[423271555,1780009858000,-268.6115057,0.00031,120]
[423271570,1780009858000,-164.0,0.00031216,120]
[423271553,1780009858000,-159.43388526,0.00030966,7]
[423271554,1780009858000,-1225.0,0.00030985,2]
[423271556,1780009858000,-220.65,0.00031,2]
[423271562,1780009858000,-620.0,0.00031063,120]
[423271566,1780009858000,-1000.0,0.00031119,14]
[423271564,1780009858000,-1000.0,0.00031098,14]
[423271565,1780009858000,-164.0,0.00031098,120]
[423271573,1780009858000,-1000.0,0.00031239,14]
[423271569,1780009858000,-525.0,0.0003118,2]
[423271563,1780009858000,-200.0,0.00031096,2]
[423271572,1780009858000,-3413.0,0.00031238,120]
[423271568,1780009858000,-150.0,0.0003118,2]
[423271541,1780009858000,-4829.0,0.00030798,30]
[423271557,1780009858000,-215.50460005,0.00031,7]
[423271538,1780009858000,-2359.0,0.00030798,30]
[423271520,1780009858000,-558.98872181,0.00030718,7]
[423271539,1780009858000,-1281.0,0.00030798,30]
[423271513,1780009858000,-463.2637136,0.00030718,7]
[423271512,1780009858000,-458.78678336,0.00030718,7]
[423271519,1780009858000,-400.2769866,0.00030718,7]
[423271511,1780009858000,-460.10226742,0.00030718,7]
[423271516,1780009858000,-531.72727014,0.00030718,7]
[423271518,1780009858000,-231.31838806,0.00030718,2]
[423271521,1780009858000,-616.43270115,0.00030718,7]
[423271522,1780009858000,-477.03040993,0.00030718,7]
[423271515,1780009858000,-374.5289977,0.00030718,7]
[423271517,1780009858000,-485.83811591,0.00030718,7]
[423271514,1780009858000,-440.09777269,0.00030718,7]
[423271532,1780009858000,-2518.0,0.00030767,30]
[423271526,1780009858000,-456.58565288,0.00030719,7]
[423271540,1780009858000,-1136.0,0.00030798,30]
[423271533,1780009858000,-3186.0,0.00030767,30]
[423271524,1780009858000,-304.86388448,0.00030718,7]
[423271530,1780009858000,-1880.0,0.00030767,30]
[423271531,1780009858000,-999.0,0.00030767,30]
[423271527,1780009858000,-245.0,0.0003073,120]
[423271523,1780009858000,-598.79265018,0.00030718,7]
[423271534,1780009858000,-1072.0,0.00030767,30]
[423271525,1780009858000,-495.07104896,0.00030719,7]
[423271528,1780009858000,-249.89,0.00030742,2]
[423271536,1780009858000,-1033.0,0.00030789,120]
[423271535,1780009858000,-1269.91363756,0.00030783,7]
[423271537,1780009858000,-1003.0,0.00030798,30]
[423271546,1780009858000,-183.49026106,0.00030838,7]
[423271547,1780009858000,-162.0,0.00030842,120]
[423271529,1780009858000,-1331.0,0.00030767,30]
[423271567,1780009858000,-500.0,0.00031174,120]
[423271578,1780009858000,-188.34675647,0.00031289,2]
[423271571,1780009858000,-182.026508,0.00031235,7]
[423271608,1780009858000,-161.49030433,0.00031301,7]
[423271606,1780009858000,-167.87644384,0.00031301,7]
[423271610,1780009858000,-170.74865275,0.00031301,7]
[423271612,1780009858000,-160.45204036,0.00031301,7]
[423271614,1780009858000,-389.71941271,0.00031301,7]
[423271617,1780009858000,-429.78383387,0.00031301,7]
[423271613,1780009858000,-315.28025558,0.00031301,7]
[423271616,1780009858000,-164.94429335,0.00031301,2]
[423271615,1780009858000,-168.82248044,0.00031301,7]
[423271624,1780009858000,-325.83602201,0.00031301,7]
[423271618,1780009858000,-1261.17094052,0.00031301,7]
[423271623,1780009858000,-384.39172351,0.00031301,7]
[423271620,1780009858000,-1042.85162327,0.00031301,7]
[423271605,1780009858000,-164.36888274,0.00031301,7]
[423271621,1780009858000,-1371.99647996,0.00031301,7]
[423271626,1780009858000,-411.3893685,0.00031301,7]
[423271625,1780009858000,-329.54643824,0.00031301,7]
[423271627,1780009858000,-408.72936025,0.00031301,7]
[423271636,1780009858000,-324.2726473,0.00031305,7]
[423271628,1780009858000,-346.32503532,0.00031301,7]
[423271629,1780009858000,-301.36970756,0.00031301,7]
[423271630,1780009858000,-160.31830115,0.00031301,7]
[423271632,1780009858000,-607.47425602,0.00031301,2]
[423271635,1780009858000,-159.10902274,0.00031305,7]
[423271634,1780009858000,-304.70271517,0.00031305,7]
[423271631,1780009858000,-157.25564073,0.00031301,7]
[423271633,1780009858000,-168.76782053,0.00031301,2]
[423271574,1780009858000,-203.6861,0.0003124,120]
[423271619,1780009858000,-167.46027441,0.00031301,7]
[423271609,1780009858000,-415.63805431,0.00031301,7]
[423271622,1780009858000,-449.820445,0.00031301,7]
[423271607,1780009858000,-165.50485674,0.00031301,7]
[423271603,1780009858000,-212.70991586,0.00031301,7]
[423271587,1780009858000,-160.3800468,0.00031301,7]
[423271577,1780009858000,-1476.0,0.00031247,120]
[423271585,1780009858000,-160.38004708,0.00031301,7]
[423271586,1780009858000,-160.38324142,0.00031301,7]
[423271582,1780009858000,-708.73572974,0.00031301,7]
[423271575,1780009858000,-2420.0,0.00031243,120]
[423271584,1780009858000,-160.45202745,0.00031301,7]
[423271576,1780009858000,-1748.0,0.00031247,120]
[423271579,1780009858000,-414.00856295,0.00031292,7]
[423271583,1780009858000,-160.53932082,0.00031301,7]
[423271580,1780009858000,-753.94629312,0.00031298,7]
[423271589,1780009858000,-327.09218294,0.00031301,7]
[423271599,1780009858000,-464.65126004,0.00031301,7]
[423271588,1780009858000,-160.38004795,0.00031301,7]
[423271581,1780009858000,-1542.91,0.000313,14]
[423271604,1780009858000,-168.79527724,0.00031301,7]
[423271590,1780009858000,-439.61936522,0.00031301,7]
[423271602,1780009858000,-168.220635,0.00031301,7]
[423271600,1780009858000,-221.95526953,0.00031301,7]
[423271611,1780009858000,-416.73799728,0.00031301,5]
[423271593,1780009858000,-160.45204894,0.00031301,7]
[423271597,1780009858000,-160.35695398,0.00031301,7]
[423271601,1780009858000,-170.10002111,0.00031301,7]
[423271591,1780009858000,-160.59521068,0.00031301,7]
[423271592,1780009858000,-160.38005042,0.00031301,7]
[423271598,1780009858000,-170.40379974,0.00031301,7]
[423271596,1780009858000,-160.38004708,0.00031301,7]
[423271594,1780009858000,-318.92563261,0.00031301,7]
[423271595,1780009858000,-348.79571726,0.00031301,7]
[423271679,1780009859000,-624.21056624,0.00031305,7]
[423271681,1780009859000,-800.98806042,0.00031305,7]
[423271680,1780009859000,-498.79915908,0.00031305,7]
[423271678,1780009859000,-522.07971878,0.00031305,7]
[423271676,1780009859000,-457.77705782,0.00031305,7]
[423271688,1780009859000,-670.61514787,0.00031311,5]
[423271671,1780009859000,-724.11859113,0.00031305,7]
[423271687,1780009859000,-459.72601446,0.00031311,2]
[423271670,1780009859000,-641.96150752,0.00031305,7]